[Event "*** SCC Grand Prix: Titled Tuesday Blitz"]
[Site "Chess.com"]
[Date "2020.07.07"]
[Round "1"]
[White "IMKarimIsmael"]
[Black "Bulldog167"]
[Result "1/2-1/2"]
[WhiteElo "2407"]
[BlackElo "2734"]
[TimeControl "180+1"]
[EndTime "10:08:29 PDT"]
[Termination "Game drawn - insufficient material"]

1. e4 {[%clk 0:03:00.9]} 1... e6 {[%clk 0:02:59.5]} 2. d4 {[%clk 0:02:59.8]}
2... d5 {[%clk 0:02:59.2]} 3. exd5 {[%clk 0:03:00.7]} 3... exd5 {[%clk 0:02:59]}
4. Nf3 {[%clk 0:03:01]} 4... Nf6 {[%clk 0:02:59.2]} 5. Bd3 {[%clk 0:03:00.1]}
5... Bd6 {[%clk 0:02:59.4]} 6. Qe2+ {[%clk 0:03:00.2]} 6... Be6 {[%clk
0:02:59.2]} 7. Ng5 {[%clk 0:02:59.6]} 7... Qe7 {[%clk 0:02:59.2]} 8. Nxe6 {[%clk
0:02:59]} 8... Qxe6 {[%clk 0:03:00.1]} 9. Qxe6+ {[%clk 0:02:57.1]} 9... fxe6
{[%clk 0:03:01]} 10. O-O {[%clk 0:02:55.1]} 10... O-O {[%clk 0:02:52.1]} 11. Re1
{[%clk 0:02:50.9]} 11... Ng4 {[%clk 0:02:41.5]} 12. f3 {[%clk 0:02:43.2]} 12...
Bxh2+ {[%clk 0:02:39]} 13. Kf1 {[%clk 0:02:39.7]} 13... e5 {[%clk 0:02:24.3]}
14. dxe5 {[%clk 0:02:26.1]} 14... Nxe5 {[%clk 0:02:20.1]} 15. Be2 {[%clk
0:02:17.5]} 15... Nbd7 {[%clk 0:02:06.9]} 16. Rd1 {[%clk 0:02:14.8]} 16... c6
{[%clk 0:01:57.7]} 17. c4 {[%clk 0:02:08.5]} 17... dxc4 {[%clk 0:01:54.2]} 18.
Bxc4+ {[%clk 0:02:00.1]} 18... Nxc4 {[%clk 0:01:54.2]} 19. Rxd7 {[%clk 0:02:00]}
19... Rad8 {[%clk 0:01:43.3]} 20. Rxd8 {[%clk 0:01:59.2]} 20... Rxd8 {[%clk
0:01:44.2]} 21. Nc3 {[%clk 0:01:59.3]} 21... Be5 {[%clk 0:01:42.7]} 22. Bg5
{[%clk 0:01:54.3]} 22... Rd7 {[%clk 0:01:39.4]} 23. Re1 {[%clk 0:01:51]} 23...
h6 {[%clk 0:01:33.8]} 24. Bc1 {[%clk 0:01:46.4]} 24... Bxc3 {[%clk 0:01:33.3]}
25. bxc3 {[%clk 0:01:45.7]} 25... Rd3 {[%clk 0:01:33.5]} 26. Re7 {[%clk
0:01:42.2]} 26... Rxc3 {[%clk 0:01:27.3]} 27. Bf4 {[%clk 0:01:42.6]} 27... Rc2
{[%clk 0:01:17.5]} 28. Rxb7 {[%clk 0:01:38.5]} 28... Rxa2 {[%clk 0:01:17.5]} 29.
Rc7 {[%clk 0:01:34]} 29... Ra6 {[%clk 0:01:08.9]} 30. Ke2 {[%clk 0:01:30.5]}
30... g5 {[%clk 0:01:06]} 31. Kd3 {[%clk 0:01:08.6]} 31... Nb2+ {[%clk
0:00:45.2]} 32. Kc2 {[%clk 0:01:08.7]} 32... gxf4 {[%clk 0:00:45.5]} 33. Kxb2
{[%clk 0:01:08.7]} 33... Rb6+ {[%clk 0:00:44.8]} 34. Kc3 {[%clk 0:01:07.7]}
34... a5 {[%clk 0:00:44.5]} 35. Ra7 {[%clk 0:00:52.6]} 35... Rb5 {[%clk
0:00:44.6]} 36. Kd4 {[%clk 0:00:49.4]} 36... Rb4+ {[%clk 0:00:27.1]} 37. Ke5
{[%clk 0:00:48.7]} 37... a4 {[%clk 0:00:26.5]} 38. Kf6 {[%clk 0:00:47.6]} 38...
h5 {[%clk 0:00:08.4]} 39. Ra8+ {[%clk 0:00:31.3]} 39... Kh7 {[%clk 0:00:08.7]}
40. Ra7+ {[%clk 0:00:31.1]} 40... Kh6 {[%clk 0:00:09.2]} 41. Ra8 {[%clk
0:00:31.6]} 41... Rb7 {[%clk 0:00:09.2]} 42. Rxa4 {[%clk 0:00:30.8]} 42... Rg7
{[%clk 0:00:08.8]} 43. Ra8 {[%clk 0:00:27.9]} 43... Rg6+ {[%clk 0:00:08.7]} 44.
Kf5 {[%clk 0:00:27.5]} 44... Rxg2 {[%clk 0:00:03.3]} 45. Rh8+ {[%clk 0:00:26]}
45... Kg7 {[%clk 0:00:03.8]} 46. Rxh5 {[%clk 0:00:26.4]} 46... Rc2 {[%clk
0:00:02.6]} 47. Kxf4 {[%clk 0:00:26]} 47... Kf6 {[%clk 0:00:03.3]} 48. Rh6+
{[%clk 0:00:25.4]} 48... Ke7 {[%clk 0:00:03.9]} 49. Ke4 {[%clk 0:00:20.3]} 49...
Kd7 {[%clk 0:00:03.7]} 50. f4 {[%clk 0:00:20.5]} 50... Re2+ {[%clk 0:00:04]} 51.
Kf5 {[%clk 0:00:20.6]} 51... c5 {[%clk 0:00:04.4]} 52. Rh8 {[%clk 0:00:20]}
52... c4 {[%clk 0:00:04.8]} 53. Kf6 {[%clk 0:00:20.3]} 53... c3 {[%clk
0:00:04.8]} 54. Rh3 {[%clk 0:00:20.8]} 54... c2 {[%clk 0:00:03.8]} 55. Rc3
{[%clk 0:00:20.7]} 55... Kd6 {[%clk 0:00:02.8]} 56. f5 {[%clk 0:00:21]} 56...
Kd5 {[%clk 0:00:02.2]} 57. Kg6 {[%clk 0:00:21.2]} 57... Kd4 {[%clk 0:00:01.9]}
58. Rc8 {[%clk 0:00:21.3]} 58... Rg2+ {[%clk 0:00:02.4]} 59. Kf7 {[%clk
0:00:21.3]} 59... Kd3 {[%clk 0:00:02.6]} 60. f6 {[%clk 0:00:21.2]} 60... Rg1
{[%clk 0:00:03.1]} 61. Kf8 {[%clk 0:00:18.2]} 61... c1=Q {[%clk 0:00:01.9]} 62.
Rxc1 {[%clk 0:00:17.6]} 62... Rxc1 {[%clk 0:00:02.8]} 63. f7 {[%clk 0:00:18.1]}
63... Rf1 {[%clk 0:00:03.7]} 64. Ke7 {[%clk 0:00:18]} 64... Rxf7+ {[%clk
0:00:04.6]} 65. Kxf7 {[%clk 0:00:18.2]} 1/2-1/2

[Event "*** SCC Grand Prix: Titled Tuesday Blitz"]
[Site "Chess.com"]
[Date "2020.07.07"]
[Round "1"]
[White "124chess"]
[Black "Ati1517"]
[Result "1-0"]
[WhiteElo "2690"]
[BlackElo "2370"]
[TimeControl "180+1"]
[EndTime "10:08:36 PDT"]
[Termination "124chess won by resignation"]

1. d4 {[%clk 0:02:54.9]} 1... d5 {[%clk 0:02:57.7]} 2. c4 {[%clk 0:02:54.6]}
2... e6 {[%clk 0:02:55]} 3. Nc3 {[%clk 0:02:53.5]} 3... Nf6 {[%clk 0:02:54.6]}
4. cxd5 {[%clk 0:02:53.8]} 4... exd5 {[%clk 0:02:54]} 5. Bg5 {[%clk 0:02:54.4]}
5... Be7 {[%clk 0:02:53.5]} 6. e3 {[%clk 0:02:54.9]} 6... O-O {[%clk 0:02:48.7]}
7. Bd3 {[%clk 0:02:55.4]} 7... Nbd7 {[%clk 0:02:47.3]} 8. Nf3 {[%clk 0:02:55.5]}
8... c6 {[%clk 0:02:45.6]} 9. O-O {[%clk 0:02:55.2]} 9... Re8 {[%clk 0:02:44.8]}
10. Rb1 {[%clk 0:02:54.1]} 10... a5 {[%clk 0:02:43.4]} 11. Qc2 {[%clk
0:02:52.2]} 11... h6 {[%clk 0:02:28.6]} 12. Bh4 {[%clk 0:02:49.3]} 12... Ne4
{[%clk 0:02:23.2]} 13. Bxe7 {[%clk 0:02:48.2]} 13... Qxe7 {[%clk 0:02:20.9]} 14.
Rbe1 {[%clk 0:02:40.2]} 14... Nxc3 {[%clk 0:01:46.7]} 15. Qxc3 {[%clk
0:02:38.5]} 15... Nf6 {[%clk 0:01:44.3]} 16. Ne5 {[%clk 0:02:20.6]} 16... Ne4
{[%clk 0:01:32]} 17. Qc2 {[%clk 0:02:14.4]} 17... f6 {[%clk 0:01:27.7]} 18. Ng6
{[%clk 0:02:09.1]} 18... Qf7 {[%clk 0:01:21.7]} 19. Nf4 {[%clk 0:02:09.2]} 19...
f5 {[%clk 0:01:18.7]} 20. Be2 {[%clk 0:02:00.3]} 20... Nf6 {[%clk 0:01:13.9]}
21. Nd3 {[%clk 0:01:58.5]} 21... Be6 {[%clk 0:01:02.9]} 22. a3 {[%clk
0:01:56.7]} 22... Ne4 {[%clk 0:00:57.6]} 23. Ne5 {[%clk 0:01:51.2]} 23... Qf6
{[%clk 0:00:56.5]} 24. Bd3 {[%clk 0:01:41.5]} 24... Nd6 {[%clk 0:00:50.7]} 25.
f4 {[%clk 0:01:33.5]} 25... Ne4 {[%clk 0:00:50.7]} 26. b4 {[%clk 0:01:30.8]}
26... axb4 {[%clk 0:00:50.1]} 27. axb4 {[%clk 0:01:31.7]} 27... Ra3 {[%clk
0:00:50.3]} 28. Qb2 {[%clk 0:01:10.4]} 28... Rea8 {[%clk 0:00:50]} 29. Ra1
{[%clk 0:01:10.9]} 29... Rxa1 {[%clk 0:00:49.6]} 30. Rxa1 {[%clk 0:01:11.8]}
30... Rxa1+ {[%clk 0:00:49.6]} 31. Qxa1 {[%clk 0:01:12.7]} 31... Qh4 {[%clk
0:00:44.6]} 32. Bxe4 {[%clk 0:01:07.8]} 32... fxe4 {[%clk 0:00:36.9]} 33. Qb1
{[%clk 0:01:02.4]} 33... Qd8 {[%clk 0:00:35.4]} 34. Qc2 {[%clk 0:00:52.3]} 34...
Qb6 {[%clk 0:00:35.3]} 35. Qc5 {[%clk 0:00:52.4]} 35... Qd8 {[%clk 0:00:27.3]}
36. h3 {[%clk 0:00:51.4]} 36... Kh7 {[%clk 0:00:27]} 37. b5 {[%clk 0:00:46.7]}
37... Qa5 {[%clk 0:00:26]} 38. bxc6 {[%clk 0:00:35.9]} 38... Qe1+ {[%clk
0:00:24.9]} 39. Kh2 {[%clk 0:00:36.4]} 39... Qxe3 {[%clk 0:00:24.4]} 40. cxb7
{[%clk 0:00:29.3]} 40... Qxf4+ {[%clk 0:00:24.3]} 41. Kg1 {[%clk 0:00:29.9]}
41... e3 {[%clk 0:00:21.9]} 42. Qc2+ {[%clk 0:00:22.4]} 42... Bf5 {[%clk
0:00:21.3]} 43. Qb2 {[%clk 0:00:14.1]} 43... Qg3 {[%clk 0:00:17.5]} 44. b8=Q
{[%clk 0:00:12.9]} 44... Qe1+ {[%clk 0:00:16.4]} 45. Kh2 {[%clk 0:00:13.2]}
45... e2 {[%clk 0:00:17.3]} 46. Nf7 {[%clk 0:00:10.9]} 46... Qf1 {[%clk
0:00:14.2]} 47. Qh8+ {[%clk 0:00:10.3]} 47... Kg6 {[%clk 0:00:14.4]} 48. Ne5+
{[%clk 0:00:11.2]} 48... Kh5 {[%clk 0:00:13]} 49. Nf3 {[%clk 0:00:09.4]} 49...
e1=Q {[%clk 0:00:10.3]} 50. Nxe1 {[%clk 0:00:08.7]} 50... Qxe1 {[%clk
0:00:10.6]} 51. Qxg7 {[%clk 0:00:07.7]} 51... Qe4 {[%clk 0:00:08.1]} 52. Qg3
{[%clk 0:00:07.1]} 52... Be6 {[%clk 0:00:04.2]} 53. Qbf2 {[%clk 0:00:06.6]}
53... Bf5 {[%clk 0:00:04.1]} 54. Qgf3+ {[%clk 0:00:06]} 54... Qxf3 {[%clk
0:00:03.9]} 55. Qxf3+ {[%clk 0:00:06.9]} 55... Kh4 {[%clk 0:00:04.1]} 56. Qxd5
{[%clk 0:00:07.1]} 56... h5 {[%clk 0:00:03.2]} 57. Qe5 {[%clk 0:00:06.3]} 57...
Kg5 {[%clk 0:00:01.5]} 1-0

[Event "*** SCC Grand Prix: Titled Tuesday Blitz"]
[Site "Chess.com"]
[Date "2020.07.07"]
[Round "1"]
[White "realmadridtv"]
[Black "AlphaHero0"]
[Result "0-1"]
[WhiteElo "2459"]
[BlackElo "1960"]
[TimeControl "180+1"]
[EndTime "10:08:36 PDT"]
[Termination "AlphaHero0 won by checkmate"]

1. e4 {[%clk 0:03:00.9]} 1... Nc6 {[%clk 0:03:00.9]} 2. Nf3 {[%clk 0:03:00.3]}
2... d6 {[%clk 0:02:59.8]} 3. d4 {[%clk 0:02:59.7]} 3... Nf6 {[%clk 0:03:00.3]}
4. Nc3 {[%clk 0:02:59.5]} 4... g6 {[%clk 0:02:59.9]} 5. Be3 {[%clk 0:02:59.7]}
5... Ng4 {[%clk 0:02:57.3]} 6. Bg5 {[%clk 0:02:54.7]} 6... h6 {[%clk 0:02:57]}
7. Bh4 {[%clk 0:02:54.3]} 7... Bg7 {[%clk 0:02:55.4]} 8. Qd2 {[%clk 0:02:52]}
8... a6 {[%clk 0:02:52.4]} 9. O-O-O {[%clk 0:02:41.6]} 9... b5 {[%clk
0:02:30.4]} 10. h3 {[%clk 0:02:35.7]} 10... b4 {[%clk 0:02:29.8]} 11. Nd5 {[%clk
0:02:24.8]} 11... Nf6 {[%clk 0:02:30.2]} 12. Nxf6+ {[%clk 0:02:23.9]} 12... exf6
{[%clk 0:02:22.8]} 13. e5 {[%clk 0:02:21]} 13... dxe5 {[%clk 0:02:12.9]} 14.
dxe5 {[%clk 0:02:17.3]} 14... Qxd2+ {[%clk 0:02:13.8]} 15. Rxd2 {[%clk
0:02:16.6]} 15... fxe5 {[%clk 0:01:59.1]} 16. Bc4 {[%clk 0:02:10.5]} 16... O-O
{[%clk 0:01:49.2]} 17. Re1 {[%clk 0:02:03.4]} 17... Bb7 {[%clk 0:01:45.1]} 18.
Rd7 {[%clk 0:01:58.8]} 18... Rac8 {[%clk 0:01:42.9]} 19. Bd5 {[%clk 0:01:43.1]}
19... Nb8 {[%clk 0:01:33.2]} 20. Bxb7 {[%clk 0:01:42]} 20... Nxd7 {[%clk
0:01:32.8]} 21. Bxc8 {[%clk 0:01:41.6]} 21... Rxc8 {[%clk 0:01:33.7]} 22. Bg3
{[%clk 0:01:23.7]} 22... Re8 {[%clk 0:01:29.2]} 23. Nd2 {[%clk 0:01:21.3]} 23...
Nb6 {[%clk 0:01:27.2]} 24. f3 {[%clk 0:01:20]} 24... f5 {[%clk 0:01:25.6]} 25.
Bf2 {[%clk 0:01:20.4]} 25... Kf7 {[%clk 0:01:24.5]} 26. Bc5 {[%clk 0:01:16.8]}
26... a5 {[%clk 0:01:22.9]} 27. Bxb6 {[%clk 0:01:10]} 27... cxb6 {[%clk
0:01:23.8]} 28. Nc4 {[%clk 0:01:10.5]} 28... Re6 {[%clk 0:01:24.2]} 29. Rd1
{[%clk 0:01:08.7]} 29... Ke7 {[%clk 0:01:23.6]} 30. Ne3 {[%clk 0:01:08]} 30...
Rd6 {[%clk 0:01:20.3]} 31. Nd5+ {[%clk 0:01:06.1]} 31... Ke6 {[%clk 0:01:14.1]}
32. Nc7+ {[%clk 0:01:04.5]} 32... Kd7 {[%clk 0:01:13.1]} 33. Rxd6+ {[%clk
0:00:59.4]} 33... Kxd6 {[%clk 0:01:12.5]} 34. Ne8+ {[%clk 0:00:59.9]} 34... Ke7
{[%clk 0:01:09.4]} 35. Nxg7 {[%clk 0:01:00.1]} 35... Kf7 {[%clk 0:01:09.5]} 36.
Nxf5 {[%clk 0:00:58.9]} 36... gxf5 {[%clk 0:01:09.1]} 37. Kd2 {[%clk 0:00:59.5]}
37... Ke6 {[%clk 0:00:58.8]} 38. g4 {[%clk 0:00:59.2]} 38... b5 {[%clk 0:00:18]}
39. Ke3 {[%clk 0:00:55.3]} 39... Kf6 {[%clk 0:00:18.1]} 40. h4 {[%clk
0:00:44.7]} 40... Kg6 {[%clk 0:00:17.6]} 41. Kd3 {[%clk 0:00:37.2]} 41... Kf6
{[%clk 0:00:17]} 42. a3 {[%clk 0:00:31.1]} 42... bxa3 {[%clk 0:00:16.3]} 43.
bxa3 {[%clk 0:00:32]} 43... e4+ {[%clk 0:00:10.1]} 44. Ke3 {[%clk 0:00:23.3]}
44... exf3 {[%clk 0:00:09.4]} 45. Kxf3 {[%clk 0:00:22]} 45... fxg4+ {[%clk
0:00:09.3]} 46. Kxg4 {[%clk 0:00:22.9]} 46... Kg6 {[%clk 0:00:09.3]} 47. h5+
{[%clk 0:00:20.5]} 47... Kf6 {[%clk 0:00:09]} 48. Kf4 {[%clk 0:00:21]} 48... Ke6
{[%clk 0:00:09.3]} 49. Ke4 {[%clk 0:00:21]} 49... Kd6 {[%clk 0:00:02.6]} 50. Kf5
{[%clk 0:00:18.7]} 50... b4 {[%clk 0:00:02.6]} 51. axb4 {[%clk 0:00:18.3]} 51...
a4 {[%clk 0:00:02.8]} 52. Kg6 {[%clk 0:00:16.8]} 52... a3 {[%clk 0:00:03.7]} 53.
Kxh6 {[%clk 0:00:16.8]} 53... a2 {[%clk 0:00:04.6]} 54. Kg6 {[%clk 0:00:15.5]}
54... a1=Q {[%clk 0:00:05.5]} 55. h6 {[%clk 0:00:16.4]} 55... Qg1+ {[%clk
0:00:05.4]} 56. Kf7 {[%clk 0:00:15.9]} 56... Qf2+ {[%clk 0:00:05.4]} 57. Kg7
{[%clk 0:00:15.9]} 57... Qg3+ {[%clk 0:00:06.3]} 58. Kf7 {[%clk 0:00:16.3]}
58... Qf4+ {[%clk 0:00:06.7]} 59. Kg7 {[%clk 0:00:16.9]} 59... Qg5+ {[%clk
0:00:06.7]} 60. Kf7 {[%clk 0:00:15.5]} 60... Qxh6 {[%clk 0:00:06.2]} 61. c4
{[%clk 0:00:15.7]} 61... Qe3 {[%clk 0:00:05.5]} 62. c5+ {[%clk 0:00:16.2]} 62...
Kc6 {[%clk 0:00:05.4]} 63. Kf6 {[%clk 0:00:16.6]} 63... Qd4+ {[%clk 0:00:04.8]}
64. Ke6 {[%clk 0:00:16.5]} 64... Qxb4 {[%clk 0:00:05.2]} 65. Ke7 {[%clk
0:00:16.7]} 65... Qxc5+ {[%clk 0:00:06.1]} 66. Kd8 {[%clk 0:00:17.6]} 66... Qe5
{[%clk 0:00:04.5]} 67. Kc8 {[%clk 0:00:17.3]} 67... Qe8# {[%clk 0:00:04.1]} 0-1

[Event "*** SCC Grand Prix: Titled Tuesday Blitz"]
[Site "Chess.com"]
[Date "2020.07.07"]
[Round "1"]
[White "Srisshhhtea"]
[Black "Alexey_Spirin"]
[Result "1-0"]
[WhiteElo "2494"]
[BlackElo "2050"]
[TimeControl "180+1"]
[EndTime "10:08:38 PDT"]
[Termination "Srisshhhtea won by resignation"]

1. d4 {[%clk 0:03:00.2]} 1... Nf6 {[%clk 0:02:59.3]} 2. c4 {[%clk 0:02:58.7]}
2... e6 {[%clk 0:02:59.5]} 3. Nf3 {[%clk 0:02:57.4]} 3... b6 {[%clk 0:02:59.6]}
4. g3 {[%clk 0:02:53.3]} 4... Bb7 {[%clk 0:02:59.9]} 5. Bg2 {[%clk 0:02:53.8]}
5... c5 {[%clk 0:03:00.1]} 6. d5 {[%clk 0:02:35.5]} 6... exd5 {[%clk 0:02:59.7]}
7. Nh4 {[%clk 0:02:34.9]} 7... b5 {[%clk 0:03:00.1]} 8. cxd5 {[%clk 0:02:33]}
8... d6 {[%clk 0:03:00.5]} 9. O-O {[%clk 0:02:32.7]} 9... g6 {[%clk 0:02:59]}
10. a4 {[%clk 0:02:32.9]} 10... a6 {[%clk 0:02:54.1]} 11. Na3 {[%clk 0:02:24.9]}
11... Bg7 {[%clk 0:02:28.2]} 12. e4 {[%clk 0:02:04.6]} 12... O-O {[%clk
0:02:24.1]} 13. Be3 {[%clk 0:02:04.4]} 13... Re8 {[%clk 0:02:20.5]} 14. Qc2
{[%clk 0:01:53.6]} 14... bxa4 {[%clk 0:01:43.8]} 15. h3 {[%clk 0:01:49.7]} 15...
Nbd7 {[%clk 0:01:39]} 16. Nc4 {[%clk 0:01:46]} 16... Ne5 {[%clk 0:01:30.6]} 17.
Rxa4 {[%clk 0:01:46.4]} 17... Nxc4 {[%clk 0:01:29.8]} 18. Qxc4 {[%clk
0:01:46.9]} 18... Nd7 {[%clk 0:01:30.1]} 19. Qc2 {[%clk 0:01:33.7]} 19... a5
{[%clk 0:01:30]} 20. Rfa1 {[%clk 0:01:26.9]} 20... Ne5 {[%clk 0:01:19.1]} 21.
Nf3 {[%clk 0:01:22.3]} 21... Nxf3+ {[%clk 0:01:11]} 22. Bxf3 {[%clk 0:01:23.2]}
22... Qb6 {[%clk 0:01:11.1]} 23. Bd2 {[%clk 0:01:16]} 23... Bc8 {[%clk
0:01:02.1]} 24. h4 {[%clk 0:00:59.6]} 24... Qxb2 {[%clk 0:00:57.7]} 25. Qxb2
{[%clk 0:00:57]} 25... Bxb2 {[%clk 0:00:57.3]} 26. Rb1 {[%clk 0:00:55.2]} 26...
Bd4 {[%clk 0:00:50.9]} 27. Rxa5 {[%clk 0:00:53.2]} 27... Rxa5 {[%clk 0:00:50.7]}
28. Bxa5 {[%clk 0:00:54.1]} 28... Ba6 {[%clk 0:00:50.8]} 29. Bc7 {[%clk
0:00:41.9]} 29... Bd3 {[%clk 0:00:42.6]} 30. Rd1 {[%clk 0:00:39.2]} 30... Bxe4
{[%clk 0:00:41.3]} 31. Re1 {[%clk 0:00:38.2]} 31... f5 {[%clk 0:00:41.3]} 32.
Bxe4 {[%clk 0:00:30.1]} 32... fxe4 {[%clk 0:00:40.8]} 33. Bxd6 {[%clk
0:00:30.4]} 33... Rd8 {[%clk 0:00:41]} 34. Be7 {[%clk 0:00:28.1]} 34... Rxd5
{[%clk 0:00:41]} 35. Rxe4 {[%clk 0:00:28.8]} 35... Kf7 {[%clk 0:00:41]} 36. Bg5
{[%clk 0:00:26.3]} 36... h5 {[%clk 0:00:38.9]} 37. Re7+ {[%clk 0:00:25.4]} 37...
Kf8 {[%clk 0:00:36.1]} 38. Rc7 {[%clk 0:00:23.7]} 38... Rf5 {[%clk 0:00:34.9]}
39. Bf4 {[%clk 0:00:21.5]} 39... Ke8 {[%clk 0:00:33.4]} 40. Kg2 {[%clk
0:00:20.9]} 40... Rf7 {[%clk 0:00:33]} 41. Rc6 {[%clk 0:00:19]} 41... Ra7 {[%clk
0:00:31.1]} 42. Rxg6 {[%clk 0:00:17.8]} 42... Ra2 {[%clk 0:00:31.5]} 43. Be3
{[%clk 0:00:18.4]} 43... Bxe3 {[%clk 0:00:31.4]} 44. Re6+ {[%clk 0:00:19]} 44...
Kd7 {[%clk 0:00:31.3]} 45. Rxe3 {[%clk 0:00:19.9]} 45... c4 {[%clk 0:00:31.3]}
46. Rc3 {[%clk 0:00:17.7]} 46... Ra4 {[%clk 0:00:31.7]} 47. Kf3 {[%clk
0:00:17.9]} 47... Kd6 {[%clk 0:00:32.4]} 48. g4 {[%clk 0:00:15.9]} 48... hxg4+
{[%clk 0:00:32.1]} 49. Kxg4 {[%clk 0:00:16.8]} 49... Kd5 {[%clk 0:00:32.6]} 50.
h5 {[%clk 0:00:14.7]} 50... Kd4 {[%clk 0:00:32.5]} 51. Rc1 {[%clk 0:00:15.2]}
51... c3 {[%clk 0:00:29.4]} 52. h6 {[%clk 0:00:15.5]} 52... Kd3+ {[%clk
0:00:28.6]} 53. f4 {[%clk 0:00:16]} 53... Kd2 {[%clk 0:00:28.2]} 54. Rh1 {[%clk
0:00:15.3]} 54... c2 {[%clk 0:00:28.6]} 55. h7 {[%clk 0:00:15.1]} 55... Ra8
{[%clk 0:00:28.2]} 56. Kg5 {[%clk 0:00:15]} 56... c1=Q {[%clk 0:00:27.5]} 57.
Rxc1 {[%clk 0:00:14.1]} 57... Kxc1 {[%clk 0:00:27.9]} 58. f5 {[%clk 0:00:13.5]}
58... Kd2 {[%clk 0:00:27.9]} 59. Kg6 {[%clk 0:00:13.3]} 59... Ke3 {[%clk
0:00:28]} 60. f6 {[%clk 0:00:13.4]} 60... Ke4 {[%clk 0:00:28.2]} 61. f7 {[%clk
0:00:12.4]} 61... Ke5 {[%clk 0:00:28.2]} 62. Kg7 {[%clk 0:00:12.6]} 62... Ke6
{[%clk 0:00:24.5]} 63. f8=Q {[%clk 0:00:12.6]} 1-0

[Event "*** SCC Grand Prix: Titled Tuesday Blitz"]
[Site "Chess.com"]
[Date "2020.07.07"]
[Round "1"]
[White "Chuchofrio1"]
[Black "SerGo055"]
[Result "1-0"]
[WhiteElo "2227"]
[BlackElo "2546"]
[TimeControl "180+1"]
[EndTime "10:08:39 PDT"]
[Termination "Chuchofrio1 won on time"]

1. e4 {[%clk 0:03:00.6]} 1... d5 {[%clk 0:02:58.2]} 2. exd5 {[%clk 0:03:00.2]}
2... Qxd5 {[%clk 0:02:57.8]} 3. Nf3 {[%clk 0:02:57.9]} 3... Nf6 {[%clk
0:02:50.7]} 4. Be2 {[%clk 0:02:57.1]} 4... e5 {[%clk 0:02:46.5]} 5. d4 {[%clk
0:02:50.6]} 5... exd4 {[%clk 0:02:41.8]} 6. Qxd4 {[%clk 0:02:51.5]} 6... Nc6
{[%clk 0:02:41]} 7. Qxd5 {[%clk 0:02:48]} 7... Nxd5 {[%clk 0:02:41.9]} 8. a3
{[%clk 0:02:45.6]} 8... Bf5 {[%clk 0:02:39.8]} 9. Bc4 {[%clk 0:02:39.9]} 9...
O-O-O {[%clk 0:02:32.6]} 10. Ng5 {[%clk 0:02:25.5]} 10... Bg6 {[%clk 0:02:21]}
11. O-O {[%clk 0:02:21.7]} 11... h6 {[%clk 0:02:15.4]} 12. Nf3 {[%clk
0:02:21.3]} 12... Bxc2 {[%clk 0:02:03.9]} 13. Bxd5 {[%clk 0:02:14.9]} 13... Rxd5
{[%clk 0:02:02.3]} 14. Nc3 {[%clk 0:02:15.2]} 14... Rd7 {[%clk 0:01:57.8]} 15.
Bf4 {[%clk 0:02:14.9]} 15... g5 {[%clk 0:01:50.5]} 16. Bg3 {[%clk 0:02:13]}
16... Bg7 {[%clk 0:01:48.2]} 17. Rac1 {[%clk 0:02:07.2]} 17... Bg6 {[%clk
0:01:44.5]} 18. b4 {[%clk 0:02:02.8]} 18... f5 {[%clk 0:01:28.8]} 19. b5 {[%clk
0:01:59.5]} 19... Nd4 {[%clk 0:01:23.8]} 20. Ne5 {[%clk 0:01:58.5]} 20... Bxe5
{[%clk 0:01:11.6]} 21. Bxe5 {[%clk 0:01:59.4]} 21... Re8 {[%clk 0:01:11.2]} 22.
f4 {[%clk 0:01:49.6]} 22... gxf4 {[%clk 0:00:51.9]} 23. Bxf4 {[%clk 0:01:50.5]}
23... h5 {[%clk 0:00:50.8]} 24. h4 {[%clk 0:01:39.2]} 24... Bf7 {[%clk
0:00:49.6]} 25. a4 {[%clk 0:01:29.9]} 25... Ne2+ {[%clk 0:00:29.4]} 26. Nxe2
{[%clk 0:01:28.6]} 26... Rxe2 {[%clk 0:00:30.3]} 27. Rc5 {[%clk 0:01:19.2]}
27... Bd5 {[%clk 0:00:28.6]} 28. Rf2 {[%clk 0:01:17.5]} 28... Rxf2 {[%clk
0:00:26.9]} 29. Kxf2 {[%clk 0:01:18.4]} 29... c6 {[%clk 0:00:27]} 30. bxc6
{[%clk 0:01:17.6]} 30... bxc6 {[%clk 0:00:26.7]} 31. g3 {[%clk 0:01:17.3]} 31...
Rb7 {[%clk 0:00:25.9]} 32. Ra5 {[%clk 0:01:05]} 32... Rb2+ {[%clk 0:00:23.1]}
33. Ke3 {[%clk 0:01:04.9]} 33... Kb7 {[%clk 0:00:23.4]} 34. Rc5 {[%clk
0:01:02.9]} 34... Rb3+ {[%clk 0:00:20.4]} 35. Kd4 {[%clk 0:00:55.9]} 35... Rb4+
{[%clk 0:00:20.4]} 36. Ke5 {[%clk 0:00:56.3]} 36... Rxa4 {[%clk 0:00:20.9]} 37.
Kxf5 {[%clk 0:00:56.5]} 37... a5 {[%clk 0:00:19.2]} 38. Rc3 {[%clk 0:00:47.4]}
38... Bf7 {[%clk 0:00:05.1]} 39. Kf6 {[%clk 0:00:46.5]} 39... Be8 {[%clk
0:00:04.6]} 40. Ke7 {[%clk 0:00:46.4]} 40... Bg6 {[%clk 0:00:04.6]} 41. Kf6
{[%clk 0:00:46.5]} 41... Be4 {[%clk 0:00:02.8]} 42. Kg5 {[%clk 0:00:45.7]} 42...
Rb4 {[%clk 0:00:02.7]} 43. Kxh5 {[%clk 0:00:42.9]} 43... a4 {[%clk 0:00:03.2]}
44. Bd6 {[%clk 0:00:37.4]} 44... Rb5+ {[%clk 0:00:01.1]} 45. Kh6 {[%clk
0:00:31.4]} 45... Bd5 {[%clk 0:00:02]} 46. Ra3 {[%clk 0:00:28.8]} 46... Rb3
{[%clk 0:00:02.6]} 47. Rxa4 {[%clk 0:00:27.9]} 47... Rd3 {[%clk 0:00:02.7]} 48.
Bf4 {[%clk 0:00:26]} 48... c5 {[%clk 0:00:02.4]} 49. Ra5 {[%clk 0:00:24.6]}
49... Kc6 {[%clk 0:00:02.6]} 50. h5 {[%clk 0:00:20.1]} 50... c4 {[%clk
0:00:03.5]} 51. Be5 {[%clk 0:00:19.3]} 51... Be6 {[%clk 0:00:02.3]} 52. Ra6+
{[%clk 0:00:18.3]} 52... Kd5 {[%clk 0:00:02.2]} 53. Bf4 {[%clk 0:00:18.6]} 53...
c3 {[%clk 0:00:02]} 54. Rd6+ {[%clk 0:00:18.8]} 54... Kc4 {[%clk 0:00:01.8]} 55.
Rxe6 {[%clk 0:00:19.1]} 55... c2 {[%clk 0:00:02.1]} 56. Rc6+ {[%clk 0:00:19.2]}
56... Kb3 {[%clk 0:00:02.4]} 57. Rb6+ {[%clk 0:00:19.6]} 57... Kc3 {[%clk
0:00:02.2]} 58. Be5+ {[%clk 0:00:20]} 58... Kc4 {[%clk 0:00:01.9]} 59. Bf4
{[%clk 0:00:16.4]} 59... Rd5 {[%clk 0:00:01.7]} 60. Rc6+ {[%clk 0:00:16.3]}
60... Kd3 {[%clk 0:00:02.2]} 61. Kg6 {[%clk 0:00:15.4]} 61... Rd4 {[%clk
0:00:02.2]} 62. h6 {[%clk 0:00:15.3]} 62... Rc4 {[%clk 0:00:01.6]} 63. Rxc4
{[%clk 0:00:14.8]} 63... Kxc4 {[%clk 0:00:01.4]} 64. h7 {[%clk 0:00:15.7]} 64...
Kb3 {[%clk 0:00:01.9]} 65. h8=Q {[%clk 0:00:16.6]} 65... Ka2 {[%clk 0:00:02.3]}
66. Qc3 {[%clk 0:00:15.6]} 66... c1=Q {[%clk 0:00:01.8]} 67. Qxc1 {[%clk
0:00:14.5]} 67... Kb3 {[%clk 0:00:01.5]} 68. Kf5 {[%clk 0:00:13.9]} 1-0